fUST/lending_fUST_20260318
["ID","MTS","AMOUNT","RATE_DAILY","PERIOD"]
[408524799,1773823112267,151.0,0.0001,23]
[408524800,1773823145262,151.0,0.0001,23]
[408524804,1773823782210,151.0,0.0001,23]
[408524805,1773823807154,300.0,0.0001,25]
[408524806,1773823807637,21.69,0.0001,26]
[408524807,1773823807662,278.31,0.0001,26]
[408524808,1773823807953,226.5,0.0001,28]
[408524809,1773823808272,226.5,0.0001,27]
[408524810,1773823817694,151.0,0.0001,27]
[408524818,1773823832270,-162.21531717,6.072e-05,2]
[408524819,1773823832280,-5000.0,6.133e-05,2]
[408524820,1773823832290,-508.0,6.133e-05,2]
[408524821,1773823832300,-1200.0,6.631e-05,2]
[408524822,1773823832310,-2566.39106655,6.632e-05,2]
[408524823,1773823832324,-338.82343325,6.632e-05,2]
[408524825,1773823832333,-234.0,7.346e-05,2]
[408524827,1773823832343,-300.0,7.346e-05,2]
[408524828,1773823832352,-196.1382073,7.349e-05,2]
[408524829,1773823832361,-324.7093095,7.479e-05,2]
[408524830,1773823832370,-261.07345475,7.5e-05,2]
[408524831,1773823832379,-505.36871012,7.5e-05,2]
[408524832,1773823832388,-446.01254335,7.5e-05,2]
[408524833,1773823832398,-485.92178516,7.5e-05,2]
[408524834,1773823832407,-500.0,7.622e-05,2]
[408524835,1773823832416,-500.0,7.622e-05,2]
[408524836,1773823832426,-500.0,7.622e-05,2]
[408524837,1773823832436,-183.39674629,7.622e-05,2]
[408524838,1773823832445,-192.64310355,7.622e-05,2]
[408524840,1773823832456,-500.0,7.622e-05,2]
[408524842,1773823832465,-500.0,7.622e-05,2]
[408524845,1773823832475,-500.0,7.622e-05,2]
[408524847,1773823832489,-500.0,7.622e-05,2]
[408524849,1773823832499,-500.0,7.622e-05,2]
[408524850,1773823832509,-281.05095225,7.622e-05,2]
[408524852,1773823832518,-500.0,7.622e-05,2]
[408524854,1773823832527,-500.0,7.622e-05,2]
[408524856,1773823832537,-500.0,7.622e-05,2]
[408524858,1773823832546,-500.0,7.622e-05,2]
[408524860,1773823832557,-500.0,7.622e-05,2]
[408524862,1773823832566,-500.0,7.622e-05,2]
[408524864,1773823832575,-500.0,7.622e-05,2]
[408524866,1773823832584,-500.0,7.622e-05,2]
[408524868,1773823832593,-500.0,7.622e-05,2]
[408524870,1773823832602,-500.0,7.622e-05,2]
[408524872,1773823832613,-500.0,7.622e-05,2]
[408524874,1773823832622,-500.0,7.622e-05,2]
[408524876,1773823832632,-500.0,7.622e-05,2]
[408524878,1773823832641,-500.0,7.622e-05,2]
[408524880,1773823832650,-500.0,7.622e-05,2]
[408524882,1773823832659,-500.0,7.622e-05,2]
[408524883,1773823832670,-500.0,7.622e-05,2]
[408524885,1773823832680,-500.0,7.622e-05,2]
[408524887,1773823832690,-500.0,7.622e-05,2]
[408524889,1773823832699,-500.0,7.622e-05,2]
[408524891,1773823832708,-500.0,7.622e-05,2]
[408524893,1773823832718,-500.0,7.622e-05,2]
[408524895,1773823832727,-500.0,7.622e-05,2]
[408524897,1773823832737,-500.0,7.622e-05,2]
[408524899,1773823832746,-500.0,7.622e-05,2]
[408524901,1773823832755,-500.0,7.622e-05,2]
[408524903,1773823832764,-232.47755709,7.622e-05,2]
[408524905,1773823832774,-500.0,7.622e-05,2]
[408524907,1773823832783,-500.0,7.622e-05,2]
[408524909,1773823832792,-500.0,7.622e-05,2]
[408524911,1773823832801,-500.0,7.622e-05,2]
[408524913,1773823832810,-500.0,7.622e-05,2]
[408524915,1773823832820,-500.0,7.622e-05,2]
[408524917,1773823832829,-500.0,7.622e-05,2]
[408524919,1773823832838,-500.0,7.622e-05,2]
[408524921,1773823832853,-500.0,7.622e-05,2]
[408524923,1773823832873,-219.88283361,7.622e-05,2]
[408524925,1773823832891,-500.0,7.622e-05,2]
[408524927,1773823832900,-500.0,7.622e-05,2]
[408524929,1773823832910,-500.0,7.622e-05,2]
[408524931,1773823832919,-576.96034484,7.622e-05,2]
[408524933,1773823832928,-500.0,7.623e-05,2]
[408524935,1773823832937,-804.05602734,7.623e-05,2]
[408525096,1773823838507,-49195.94397266,7.623e-05,2]
[408525097,1773823838517,-231962.10032799,7.641e-05,2]
[408525098,1773823838534,-21696.33832271,7.641e-05,2]
[408525112,1773823840771,-1171.16900722,7.564e-05,2]
[408525121,1773823843613,-1071.17345952,7.564e-05,2]
[408525122,1773823843667,-2149.33,7.564e-05,2]
[408525125,1773823846542,-608.32753326,7.564e-05,2]
[408525126,1773823846552,-26910.5018634,7.641e-05,2]
[408525127,1773823847999,151.0,0.0001,27]
[408525128,1773823867353,182.23,0.0001,27]
[408525129,1773823887706,62.77,0.0001,27]
[408525130,1773823887734,88.23,0.0001,27]
[408525131,1773823927446,151.0,0.0001,28]
[408525132,1773823957619,151.0,0.0001,28]
[408525133,1773824002297,151.0,0.0001,28]
[408525134,1773824036004,151.0,0.0001,28]
[408525181,1773824464259,-115.04747782,6e-05,2]
[408525182,1773824464272,-47.52252218,6e-05,2]
[408525183,1773824464285,-115.04747782,6.449e-05,2]
[408525228,1773825032550,-1349.64553418,6.072e-05,2]
[408525251,1773825038430,-317.96272121,6.072e-05,2]
[408525253,1773825038449,-2762.95174461,6.072e-05,2]
[408525255,1773825038458,-730.43359696,6.133e-05,2]
[408525257,1773825038468,-508.0,6.133e-05,2]
[408525259,1773825038477,-723.22513578,6.245e-05,2]
[408525261,1773825038485,-1382.56637195,6.345e-05,2]
[408525263,1773825038495,-189.568091,7.079e-05,2]
[408525265,1773825038504,-357.08960078,7.294e-05,2]
[408525267,1773825038513,-300.0,7.298e-05,2]
[408525269,1773825038522,-1215.30333052,7.299e-05,2]
[408525445,1773825040864,-826.60427761,7.299e-05,2]
[408525447,1773825040873,-59.75277277,7.395e-05,2]
[408525449,1773825040885,-138.14177748,7.395e-05,2]
[408525450,1773825040895,-500.0,7.395e-05,2]
[408525451,1773825040904,-361.85822252,7.395e-05,2]
[408525452,1773825040915,-138.14177748,7.395e-05,2]
[408525454,1773825040924,-363.28927204,7.395e-05,2]
[408525455,1773825040933,-500.0,7.395e-05,2]
[408525456,1773825040942,-89.93733795,7.395e-05,2]
[408525466,1773825043601,-383.31041776,7.395e-05,2]
[408525467,1773825043611,-529.38,7.398e-05,2]
[408525468,1773825043620,-185.90124414,7.398e-05,2]
[408525469,1773825043629,-196.1416653,7.473e-05,2]
[408525470,1773825043639,-430.16399117,7.513e-05,2]
[408525471,1773825043648,-189.568091,7.575e-05,2]
[408525472,1773825043658,-1272.5734852,7.635e-05,2]
[408525473,1773825043667,-958.03575508,7.636e-05,2]
[408525474,1773825043678,-500.0,7.636e-05,2]
[408525475,1773825043689,-284.64068081,7.636e-05,2]
[408525476,1773825043700,-4301.26235941,7.636e-05,2]
[408525477,1773825043709,-36812.6333849,7.636e-05,2]
[408525479,1773825043718,-453.53157918,7.678e-05,2]
[408525480,1773825043727,-278.0,8.028e-05,2]
[408525482,1773825043736,-189.568091,8.072e-05,2]
[408525484,1773825043745,-728.24297212,8.082e-05,2]
[408525485,1773825043754,-444.8631244,8.082e-05,2]
[408525487,1773825043763,-869.84099301,8.082e-05,2]
[408525488,1773825043772,-500.0,8.192e-05,2]
[408525489,1773825043781,-261.5028675,8.192e-05,2]
[408525491,1773825043791,-500.0,8.192e-05,2]
[408525492,1773825043800,-500.0,8.192e-05,2]
[408525493,1773825043809,-532.6918587,8.192e-05,2]
[408525494,1773825043822,-2150.738,8.192e-05,2]
[408525495,1773825043831,-500.0,8.219e-05,2]
[408525496,1773825043840,-500.0,8.219e-05,2]
[408525497,1773825043849,-500.0,8.219e-05,2]
[408525498,1773825043859,-500.0,8.219e-05,2]
[408525499,1773825043868,-500.0,8.219e-05,2]
[408525500,1773825043877,-500.0,8.219e-05,2]
[408525501,1773825043888,-500.0,8.219e-05,2]
[408525502,1773825043897,-500.0,8.219e-05,2]
[408525503,1773825043906,-500.0,8.219e-05,2]
[408525504,1773825043915,-500.0,8.219e-05,2]
[408525505,1773825043924,-500.0,8.219e-05,2]
[408525506,1773825043933,-500.0,8.219e-05,2]
[408525507,1773825043942,-500.0,8.219e-05,2]
[408525508,1773825043951,-500.0,8.219e-05,2]
[408525509,1773825043960,-500.0,8.219e-05,2]
[408525510,1773825043968,-500.0,8.219e-05,2]
[408525511,1773825043978,-500.0,8.219e-05,2]
[408525512,1773825043987,-500.0,8.219e-05,2]
[408525513,1773825043996,-247.87623858,8.219e-05,2]
[408525514,1773825044005,-500.0,8.219e-05,2]
[408525515,1773825044014,-500.0,8.219e-05,2]
[408525516,1773825044024,-500.0,8.219e-05,2]
[408525517,1773825044033,-500.0,8.219e-05,2]
[408525518,1773825044042,-500.0,8.219e-05,2]
[408525519,1773825044051,-500.0,8.219e-05,2]
[408525520,1773825044060,-500.0,8.219e-05,2]
[408525521,1773825044069,-500.0,8.219e-05,2]
[408525522,1773825044079,-500.0,8.219e-05,2]
[408525523,1773825044088,-628.86676807,8.219e-05,2]
[408525524,1773825044098,-500.0,8.219e-05,2]
[408525525,1773825044107,-500.0,8.219e-05,2]
[408525526,1773825044116,-500.0,8.219e-05,2]
[408525527,1773825044125,-500.0,8.219e-05,2]
[408525528,1773825044134,-500.0,8.219e-05,2]
[408525529,1773825044143,-500.0,8.219e-05,2]
[408525530,1773825044152,-500.0,8.219e-05,2]
[408525531,1773825044161,-500.0,8.219e-05,2]
[408525532,1773825044170,-500.0,8.219e-05,2]
[408525533,1773825044180,-500.0,8.219e-05,2]
[408525534,1773825044189,-500.0,8.219e-05,2]
[408525535,1773825044198,-500.0,8.219e-05,2]
[408525536,1773825044207,-500.0,8.219e-05,2]
[408525537,1773825044216,-500.0,8.219e-05,2]
[408525538,1773825044225,-214.8765889,8.219e-05,2]
[408525539,1773825044234,-500.0,8.219e-05,2]
[408525540,1773825044243,-500.0,8.219e-05,2]
[408525541,1773825044253,-500.0,8.219e-05,2]
[408525542,1773825044262,-500.0,8.219e-05,2]
[408525543,1773825044272,-500.0,8.219e-05,2]
[408525544,1773825044282,-1272.5734852,8.423e-05,2]
[408525545,1773825044291,-1426.93004472,8.433e-05,2]
[408525546,1773825044300,-2432.53017915,8.449e-05,2]
[408525547,1773825044309,-1812.31219041,8.49e-05,2]
[408525548,1773825044318,-500.0,8.493e-05,2]
[408525549,1773825044327,-151.0,8.568e-05,2]
[408525550,1773825044336,-189.568091,8.568e-05,2]
[408525551,1773825044345,-159.0,8.7e-05,2]
[408525552,1773825044354,-2230.315306,8.74e-05,2]
[408525553,1773825044363,-600.0,8.753e-05,2]
[408525554,1773825044372,-500.0,8.767e-05,2]
[408525555,1773825044381,-500.0,8.816e-05,2]
[408525556,1773825044391,-159.0,8.9e-05,2]
[408525557,1773825044400,-1808.63201957,8.9e-05,2]
[408525558,1773825044410,-1348.5850313,8.909e-05,2]
[408525559,1773825044419,-8214.0087826,8.909e-05,2]
[408525560,1773825044429,-511.36635282,8.948e-05,2]
[408525561,1773825044439,-2000.0,9e-05,2]
[408525562,1773825044448,-500.0,9.041e-05,2]
[408525563,1773825044457,-2000.0,9.1e-05,2]
[408525564,1773825044467,-500.0,9.18e-05,2]
[408525565,1773825044476,-300.909994,9.193e-05,2]
[408525566,1773825044486,-1832.7930951,9.193e-05,2]
[408525567,1773825044495,-161.0,9.2e-05,2]
[408525568,1773825044504,-2000.0,9.2e-05,2]
[408525569,1773825044514,-1272.5734852,9.212e-05,2]
[408525570,1773825044523,-3475.88460806,9.219e-05,2]
[408525571,1773825044532,-325.0410447,9.248e-05,2]
[408525572,1773825044541,-2312.83697232,9.288e-05,2]
[408525573,1773825044550,-2000.0,9.3e-05,2]
[408525574,1773825044560,-500.0,9.315e-05,2]
[408525575,1773825044569,-388.72226269,9.364e-05,2]
[408525576,1773825044578,-2000.0,9.4e-05,2]
[408525577,1773825044588,-2000.0,9.5e-05,2]
[408525578,1773825044599,-500.0,9.589e-05,2]
[408525579,1773825044609,-2701.2488443,9.598e-05,2]
[408525580,1773825044618,-2000.0,9.6e-05,2]
[408525581,1773825044627,-720.0,9.629e-05,2]
[408525582,1773825044636,-500.0,9.638e-05,2]
[408525583,1773825044646,-2000.0,9.7e-05,2]
[408525584,1773825044655,-1000.0,9.728e-05,2]
[408525585,1773825044664,-1777.6730451,9.741e-05,2]
[408525586,1773825044674,-2000.0,9.8e-05,2]
[408525587,1773825044683,-2398.4119403,9.836e-05,2]
[408525588,1773825044692,-500.0,9.863e-05,2]
[408525589,1773825044701,-735334.35642572,9.9e-05,2]
[408525590,1773825044713,-5439.00311301,9.9e-05,2]
[408525602,1773825046556,-686.84806561,9.9e-05,2]
[408525603,1773825046715,-524.0,9.9e-05,2]
[408525604,1773825046727,-8355.61549243,9.9e-05,2]
[408525653,1773826231646,-514.0,6.579e-05,2]
[408525655,1773826231655,-891.67660279,6.579e-05,2]
[408525775,1773826242823,-2474.99999999,6.579e-05,2]
[408525784,1773826245716,-282.08409285,6.579e-05,2]
[408525791,1773826245773,-3298.8864978,6.579e-05,2]
[408525835,1773827432151,-514.0,6.579e-05,2]
[408525836,1773827432160,-5291.48487717,6.579e-05,2]
[408525837,1773827432170,-300.0,6.709e-05,2]
[408525839,1773827432179,-300.0,6.71e-05,2]
[408525841,1773827432188,-300.0,6.71e-05,2]
[408525843,1773827432198,-300.0,6.71e-05,2]
[408525845,1773827432207,-300.0,6.71e-05,2]
[408525847,1773827432216,-300.0,6.71e-05,2]
[408525849,1773827432226,-300.0,6.71e-05,2]
[408525851,1773827432236,-300.0,6.71e-05,2]
[408525853,1773827432246,-300.0,6.71e-05,2]
[408525854,1773827432255,-127.83035064,6.71e-05,2]
[408525861,1773827437786,-172.16964936,6.71e-05,2]
[408525862,1773827437795,-300.0,6.71e-05,2]
[408525863,1773827437804,-300.0,6.71e-05,2]
[408525864,1773827437813,-215.45864465,6.71e-05,2]
[408525865,1773827437824,-84.54135535,6.71e-05,2]
[408525867,1773827437833,-300.0,6.71e-05,2]
[408525869,1773827437843,-300.0,6.71e-05,2]
[408525871,1773827437852,-300.0,6.71e-05,2]
[408525873,1773827437861,-7167.52870455,6.71e-05,2]
[408525874,1773827437876,-13628.21186506,6.71e-05,2]
[408525876,1773827437886,-8772.49023341,6.71e-05,2]
[408525878,1773827437897,-1677.61615989,6.71e-05,2]
[408525929,1773827440208,-3515.3127573,6.71e-05,2]
[408525967,1773828062672,-820.33798462,6.446e-05,2]
[408526039,1773828631911,-4199.55658805,6.318e-05,2]
[408526437,1773828637984,-800.44341195,6.318e-05,2]
[408526438,1773828637993,-85.55658805,6.382e-05,2]
[408526439,1773828638004,-253.19172798,6.382e-05,2]
[408526440,1773828638037,-172.25168397,6.382e-05,2]
[408526441,1773828638047,-1953.85123308,6.696e-05,2]
[408526442,1773828638056,-399.26351298,6.723e-05,2]
[408526450,1773828640445,-380.36253887,5.977e-05,2]
[408526456,1773828640495,-1719.26634701,5.977e-05,2]
[408526459,1773828640507,-1769.72804322,5.977e-05,2]
[408526461,1773828640517,-100.73648702,6.723e-05,2]
[408526463,1773828640526,-163.69419508,6.742e-05,2]
[408526465,1773828640535,-3241.95488485,6.743e-05,2]
[408526531,1773828643219,-2509.34647797,6.743e-05,2]
[408526532,1773828643234,-8920.02511661,6.743e-05,2]
[408526533,1773828643273,-4599.58984901,6.743e-05,2]
[408526584,1773828646202,-4476.3278529,6.743e-05,2]
[408526597,1773828646309,-39938.83137432,6.743e-05,2]
[408526747,1773828955138,633.46,0.0001,24]
[408526811,1773829832092,-679.45363298,5.704e-05,2]
[408526813,1773829832103,-1314.41753867,5.704e-05,2]
[408526814,1773829832113,-207.00989142,5.762e-05,2]
[408526815,1773829832122,-505.0,5.925e-05,2]
[408526816,1773829832131,-500.0,5.985e-05,2]
[408526817,1773829832140,-500.0,6.3e-05,2]
[408526818,1773829832149,-150.24230455,6.6e-05,2]
[408526819,1773829832158,-3517.9441809,6.602e-05,2]
[408526820,1773829832169,-1421.2607696,6.602e-05,2]
[408526851,1773829838365,-942.77311489,6.602e-05,2]
[408526857,1773829838420,-44118.02193461,6.602e-05,2]
[408526859,1773829838430,-500.0,6.602e-05,2]
[408526861,1773829838439,-500.0,6.602e-05,2]
[408526863,1773829838449,-500.0,6.602e-05,2]
[408526865,1773829838458,-500.0,6.602e-05,2]
[408526867,1773829838467,-500.0,6.602e-05,2]
[408526870,1773829838486,-500.0,6.602e-05,2]
[408526873,1773829838500,-500.0,6.602e-05,2]
[408526875,1773829838510,-500.0,6.602e-05,2]
[408526877,1773829838520,-500.0,6.602e-05,2]
[408526878,1773829838529,-500.0,6.602e-05,2]
[408526879,1773829838539,-500.0,6.602e-05,2]
[408526881,1773829838549,-500.0,6.602e-05,2]
[408526883,1773829838558,-500.0,6.602e-05,2]
[408526885,1773829838567,-500.0,6.602e-05,2]
[408526886,1773829838577,-500.0,6.602e-05,2]
[408526887,1773829838586,-500.0,6.602e-05,2]
[408526888,1773829838595,-599.00605409,6.602e-05,2]
[408526889,1773829838604,-262.188622,6.602e-05,2]
[408526890,1773829838615,-500.0,6.602e-05,2]
[408526891,1773829838626,-500.0,6.602e-05,2]
[408526892,1773829838636,-509.70793698,6.602e-05,2]
[408526893,1773829838645,-500.0,6.602e-05,2]
[408526894,1773829838655,-500.0,6.602e-05,2]
[408526895,1773829838664,-500.0,6.602e-05,2]
[408526896,1773829838674,-500.0,6.602e-05,2]
[408526897,1773829838683,-500.0,6.602e-05,2]
[408526898,1773829838692,-500.0,6.602e-05,2]
[408526899,1773829838701,-500.0,6.602e-05,2]
[408526900,1773829838710,-500.0,6.602e-05,2]
[408526901,1773829838720,-500.0,6.602e-05,2]
[408526902,1773829838729,-500.0,6.602e-05,2]
[408526903,1773829838739,-500.0,6.602e-05,2]
[408526904,1773829838748,-500.0,6.602e-05,2]
[408526905,1773829838757,-500.0,6.602e-05,2]
[408526906,1773829838767,-600.0,6.602e-05,2]
[408526907,1773829838780,-500.0,6.602e-05,2]
[408526908,1773829838790,-500.0,6.602e-05,2]
[408526909,1773829838800,-500.0,6.602e-05,2]
[408526910,1773829838810,-500.0,6.602e-05,2]
[408526911,1773829838821,-500.0,6.602e-05,2]
[408526912,1773829838831,-500.0,6.602e-05,2]
[408526913,1773829838841,-500.0,6.602e-05,2]
[408526914,1773829838852,-500.0,6.602e-05,2]
[408526915,1773829838862,-500.0,6.602e-05,2]
[408526916,1773829838872,-500.0,6.602e-05,2]
[408526917,1773829838881,-500.0,6.602e-05,2]
[408526918,1773829838891,-500.0,6.602e-05,2]
[408526919,1773829838901,-500.0,6.602e-05,2]
[408526920,1773829838911,-500.0,6.602e-05,2]
[408526921,1773829838920,-500.0,6.602e-05,2]
[408526922,1773829838930,-500.0,6.602e-05,2]
[408526923,1773829838940,-500.0,6.602e-05,2]
[408526924,1773829838949,-500.0,6.602e-05,2]
[408526925,1773829838959,-500.0,6.602e-05,2]
[408526926,1773829838968,-500.0,6.602e-05,2]
[408526927,1773829838978,-500.0,6.602e-05,2]
[408526928,1773829838987,-500.0,6.602e-05,2]
[408526929,1773829838997,-500.0,6.602e-05,2]
[408526930,1773829839007,-500.0,6.602e-05,2]
[408526931,1773829839017,-500.0,6.602e-05,2]
[408526932,1773829839027,-500.0,6.602e-05,2]
[408526933,1773829839037,-500.0,6.602e-05,2]
[408526934,1773829839046,-500.0,6.602e-05,2]
[408526935,1773829839056,-500.0,6.602e-05,2]
[408526936,1773829839066,-500.0,6.602e-05,2]
[408526937,1773829839075,-500.0,6.602e-05,2]
[408526938,1773829839085,-500.0,6.602e-05,2]
[408526939,1773829839095,-500.0,6.602e-05,2]
[408526940,1773829839105,-500.0,6.602e-05,2]
[408526941,1773829839115,-500.0,6.602e-05,2]
[408526942,1773829839125,-500.0,6.602e-05,2]
[408526943,1773829839134,-500.0,6.602e-05,2]
[408526944,1773829839144,-500.0,6.602e-05,2]
[408526945,1773829839154,-500.0,6.602e-05,2]
[408526946,1773829839163,-500.0,6.602e-05,2]
[408526947,1773829839174,-500.0,6.602e-05,2]
[408526948,1773829839185,-500.0,6.602e-05,2]
[408526949,1773829839194,-500.0,6.602e-05,2]
[408526950,1773829839204,-500.0,6.602e-05,2]
[408526951,1773829839215,-500.0,6.602e-05,2]
[408526952,1773829839225,-500.0,6.602e-05,2]
[408526953,1773829839235,-500.0,6.602e-05,2]
[408526954,1773829839246,-500.0,6.602e-05,2]
[408526955,1773829839256,-500.0,6.602e-05,2]
[408526956,1773829839266,-500.0,6.602e-05,2]
[408526957,1773829839275,-500.0,6.602e-05,2]
[408526958,1773829839284,-197.17459202,6.602e-05,2]
[408526959,1773829839294,-500.0,6.602e-05,2]
[408526960,1773829839303,-165.81616501,6.602e-05,2]
[408526961,1773829839313,-500.0,6.602e-05,2]
[408526962,1773829839323,-500.0,6.602e-05,2]
[408526963,1773829839333,-500.0,6.602e-05,2]
[408526964,1773829839343,-500.0,6.602e-05,2]
[408526965,1773829839355,-500.0,6.602e-05,2]
[408526966,1773829839365,-500.0,6.602e-05,2]
[408526967,1773829839375,-500.0,6.602e-05,2]
[408526968,1773829839384,-500.0,6.602e-05,2]
[408526969,1773829839393,-500.0,6.602e-05,2]
[408526970,1773829839404,-500.0,6.602e-05,2]
[408526971,1773829839416,-444.32173506,6.602e-05,2]
[408526972,1773829839426,-500.0,6.602e-05,2]
[408526973,1773829839435,-399.68606578,6.602e-05,2]
[408526974,1773829839445,-500.0,6.602e-05,2]
[408526975,1773829839454,-500.0,6.602e-05,2]
[408526976,1773829839465,-500.0,6.602e-05,2]
[408526977,1773829839476,-500.0,6.602e-05,2]
[408526978,1773829839487,-500.0,6.602e-05,2]
[408526979,1773829839499,-500.0,6.602e-05,2]
[408526980,1773829839509,-500.0,6.602e-05,2]
[408526981,1773829839519,-500.0,6.602e-05,2]
[408526982,1773829839528,-500.0,6.602e-05,2]
[408526983,1773829839538,-500.0,6.602e-05,2]
[408526984,1773829839548,-500.0,6.602e-05,2]
[408526985,1773829839558,-500.0,6.602e-05,2]
[408526986,1773829839567,-500.0,6.602e-05,2]
[408526987,1773829839577,-500.0,6.602e-05,2]
[408526988,1773829839586,-500.0,6.602e-05,2]
[408526989,1773829839595,-500.0,6.602e-05,2]
[408526990,1773829839604,-500.0,6.602e-05,2]
[408526991,1773829839613,-500.0,6.602e-05,2]
[408526992,1773829839623,-500.0,6.602e-05,2]
[408526993,1773829839633,-500.0,6.602e-05,2]
[408526994,1773829839642,-500.0,6.602e-05,2]
[408526995,1773829839652,-500.0,6.602e-05,2]
[408526996,1773829839661,-500.0,6.602e-05,2]
[408526997,1773829839671,-500.0,6.602e-05,2]
[408526998,1773829839680,-500.0,6.602e-05,2]
[408526999,1773829839689,-500.0,6.602e-05,2]
[408527000,1773829839698,-306.69156697,6.602e-05,2]
[408527001,1773829839708,-500.0,6.602e-05,2]
[408527002,1773829839717,-500.0,6.602e-05,2]
[408527003,1773829839727,-500.0,6.602e-05,2]
[408527004,1773829839736,-500.0,6.602e-05,2]
[408527005,1773829839745,-500.0,6.602e-05,2]
[408527006,1773829839754,-500.0,6.602e-05,2]
[408527007,1773829839764,-500.0,6.602e-05,2]
[408527008,1773829839774,-500.0,6.602e-05,2]
[408527009,1773829839787,-500.0,6.602e-05,2]
[408527010,1773829839796,-500.0,6.602e-05,2]
[408527011,1773829839806,-500.0,6.602e-05,2]
[408527012,1773829839815,-500.0,6.602e-05,2]
[408527013,1773829839826,-500.0,6.602e-05,2]
[408527014,1773829839835,-500.0,6.602e-05,2]
[408527015,1773829839845,-500.0,6.602e-05,2]
[408527016,1773829839854,-500.0,6.602e-05,2]
[408527017,1773829839863,-500.0,6.602e-05,2]
[408527018,1773829839874,-500.0,6.602e-05,2]
[408527019,1773829839883,-500.0,6.602e-05,2]
[408527021,1773829839892,-500.0,6.602e-05,2]
[408527022,1773829839902,-500.0,6.602e-05,2]
[408527023,1773829839911,-500.0,6.602e-05,2]
[408527024,1773829839921,-500.0,6.602e-05,2]
[408527025,1773829839930,-500.0,6.602e-05,2]
[408527026,1773829839939,-500.0,6.602e-05,2]
[408527027,1773829839948,-500.0,6.602e-05,2]
[408527028,1773829839958,-500.0,6.602e-05,2]
[408527029,1773829839967,-500.0,6.602e-05,2]
[408527030,1773829839977,-500.0,6.602e-05,2]
[408527031,1773829839986,-500.0,6.602e-05,2]
[408527032,1773829839995,-500.0,6.602e-05,2]
[408527033,1773829840006,-642.34548508,6.602e-05,2]
[408527034,1773829840015,-500.0,6.602e-05,2]
[408527035,1773829840025,-500.0,6.602e-05,2]
[408527036,1773829840035,-500.0,6.602e-05,2]
[408527037,1773829840044,-500.0,6.602e-05,2]
[408527038,1773829840053,-250.00000001,6.602e-05,2]
[408527039,1773829840062,-282.81876766,6.603e-05,2]
[408527040,1773829840072,-501.25534483,6.603e-05,2]
[408527041,1773829840081,-504.84428445,6.603e-05,2]
[408527042,1773829840091,-500.92209641,6.603e-05,2]
[408527043,1773829840100,-501.55993991,6.603e-05,2]
[408527044,1773829840110,-500.56435454,6.603e-05,2]
[408527045,1773829840119,-160.05037099,6.603e-05,2]
[408527046,1773829840128,-501.74682683,6.603e-05,2]
[408527047,1773829840138,-504.23680696,6.603e-05,2]
[408527048,1773829840147,-212.41091605,6.603e-05,2]
[408527049,1773829840157,-1488524.87206459,6.622e-05,2]
[408527050,1773829840167,-500.0,6.632e-05,2]
[408527051,1773829840176,-45190.2378897,6.655e-05,2]
[408527052,1773829840185,-21388.353017,6.7e-05,2]
[408527053,1773829840194,-502.20980457,6.703e-05,2]
[408527054,1773829840203,-3916.09326542,6.796e-05,2]
[408527055,1773829840212,-151.0,6.804e-05,2]
[408527056,1773829840222,-300.0,6.843e-05,2]
[408527057,1773829840232,-300.0,6.843e-05,2]
[408527058,1773829840241,-300.0,6.843e-05,2]
[408527059,1773829840250,-300.0,6.843e-05,2]
[408527060,1773829840259,-300.0,6.843e-05,2]
[408527061,1773829840268,-300.0,6.843e-05,2]
[408527062,1773829840277,-300.0,6.843e-05,2]
[408527063,1773829840287,-300.0,6.843e-05,2]
[408527064,1773829840296,-300.0,6.843e-05,2]
[408527065,1773829840305,-300.0,6.843e-05,2]
[408527067,1773829840315,-300.0,6.843e-05,2]
[408527069,1773829840325,-300.0,6.843e-05,2]
[408527070,1773829840335,-300.0,6.843e-05,2]
[408527071,1773829840344,-668.83836736,6.849e-05,2]
[408527072,1773829840353,-870.70045763,6.849e-05,2]
[408527073,1773829840362,-2545.1469704,6.868e-05,2]
[408527075,1773829840372,-9188.5761628,6.868e-05,2]